[Event "Titled Tuesday Blitz June 6 Early 2023"]
[White "Sovetbekova, Nurai"]
[Black "Veiga, Jose Francisco R P Neves"]
[WhiteFideId "13801910"]
[BlackFideId "1930087"]
[WhiteElo "1857"]
[BlackElo "2319"]
[Result "1-0"]
[Round "2"]
[TimeControl "180+2"]
[Date "2023.06.06"]
[WhiteClock "0:00:11"]
[BlackClock "0:00:39"]
[Board "131"]

1. d4 {[%clk 0:03:00]}  Nf6 {[%clk 0:02:53]} 2. c4 {[%clk 0:03:00]}  g6 {[%clk 0:02:53]} 3. Nc3 {[%clk 0:03:00]}  d5 {[%clk 0:02:53]} 4. cxd5 {[%clk 0:03:00]}  Nxd5 {[%clk 0:02:54]} 5. Bd2 {[%clk 0:03:00]}  Nb6 {[%clk 0:02:52]} 6. e4 {[%clk 0:03:00]}  Bg7 {[%clk 0:02:49]} 7. Be3 {[%clk 0:02:58]}  O-O {[%clk 0:02:48]} 8. h3 {[%clk 0:02:54]}  Nc6 {[%clk 0:02:47]} 9. Nf3 {[%clk 0:02:50]}  e5 {[%clk 0:02:39]} 10. d5 {[%clk 0:02:48]}  Ne7 {[%clk 0:02:38]} 11. Be2 {[%clk 0:02:41]}  Bd7 {[%clk 0:02:27]} 12. O-O {[%clk 0:02:31]}  Nec8 {[%clk 0:02:27]} 13. Qd2 {[%clk 0:02:27]}  Nd6 {[%clk 0:02:27]} 14. b3 {[%clk 0:02:28]}  f5 {[%clk 0:02:24]} 15. exf5 {[%clk 0:02:25]}  Bxf5 {[%clk 0:02:23]} 16. Bh6 {[%clk 0:02:23]}  Qe7 {[%clk 0:02:22]} 17. Rfe1 {[%clk 0:02:15]}  e4 {[%clk 0:02:17]} 18. Nd4 {[%clk 0:02:11]}  Rad8 {[%clk 0:01:50]} 19. Bxg7 {[%clk 0:02:07]}  Qxg7 {[%clk 0:01:49]} 20. Bd1 {[%clk 0:01:29]}  Ndc4 {[%clk 0:01:19]} 21. bxc4 {[%clk 0:01:15]}  Nxc4 {[%clk 0:01:17]} 22. Nxf5 {[%clk 0:01:13]}  gxf5 {[%clk 0:01:18]} 23. Qc1 {[%clk 0:01:05]}  Rf6 {[%clk 0:01:12]} 24. Ne2 {[%clk 0:00:58]}  Ne5 {[%clk 0:01:04]} 25. Nf4 {[%clk 0:00:51]}  Rd7 {[%clk 0:00:56]} 26. Nh5 {[%clk 0:00:33]}  Nd3 {[%clk 0:00:55]} 27. Nxg7 {[%clk 0:00:28]}  Nxc1 {[%clk 0:00:56]} 28. Rxc1 {[%clk 0:00:26]}  Kxg7 {[%clk 0:00:55]} 29. Bb3 {[%clk 0:00:25]}  Rfd6 {[%clk 0:00:53]} 30. f3 {[%clk 0:00:23]}  exf3 {[%clk 0:00:52]} 31. gxf3 {[%clk 0:00:23]}  Kf6 {[%clk 0:00:53]} 32. Re6+ {[%clk 0:00:19]}  Rxe6 {[%clk 0:00:53]} 33. dxe6 {[%clk 0:00:20]}  Rg7+ {[%clk 0:00:51]} 34. Kf2 {[%clk 0:00:20]}  c6 {[%clk 0:00:52]} 35. Rd1 {[%clk 0:00:19]}  a5 {[%clk 0:00:43]} 36. Rd7 {[%clk 0:00:17]}  Rxd7 {[%clk 0:00:44]} 37. exd7 {[%clk 0:00:17]}  Ke7 {[%clk 0:00:45]} 38. Be6 {[%clk 0:00:17]}  f4 {[%clk 0:00:42]} 39. Ke2 {[%clk 0:00:14]}  b5 {[%clk 0:00:42]} 40. Kd3 {[%clk 0:00:14]}  c5 {[%clk 0:00:42]} 41. Kc3 {[%clk 0:00:13]}  h5 {[%clk 0:00:42]} 42. h4 {[%clk 0:00:12]}  Kd8 {[%clk 0:00:42]} 43. Bf5 {[%clk 0:00:11]}  Ke7 {[%clk 0:00:42]} 44. Bd3 {[%clk 0:00:10]}  c4 {[%clk 0:00:40]} 45. Bf5 {[%clk 0:00:09]}  Kd8 {[%clk 0:00:36]} 46. a4 {[%clk 0:00:10]}  bxa4 {[%clk 0:00:36]} 47. Kxc4 {[%clk 0:00:10]}  a3 {[%clk 0:00:37]} 48. Kb3 {[%clk 0:00:10]}  a2 {[%clk 0:00:38]} 49. Kxa2 {[%clk 0:00:10]}  Ke7 {[%clk 0:00:39]} 50. Ka3 {[%clk 0:00:11]} 1-0


[Site "https://www.chess.com"]

[Event "Titled Tuesday Blitz June 6 Early 2023"]
[White "Chernobay, Artem"]
[Black "Manon-og, Ramon Jr."]
[WhiteFideId "4167406"]
[BlackFideId "5200776"]
[WhiteElo "2474"]
[BlackElo "2361"]
[Result "1-0"]
[Round "2"]
[TimeControl "180+2"]
[Date "2023.06.06"]
[WhiteClock "0:00:16"]
[BlackClock "0:00:35"]
[Board "134"]

1. d4 {[%clk 0:02:58]}  Nf6 {[%clk 0:02:57]} 2. c4 {[%clk 0:02:59]}  g6 {[%clk 0:02:57]} 3. Nc3 {[%clk 0:02:59]}  d5 {[%clk 0:02:57]} 4. cxd5 {[%clk 0:02:59]}  Nxd5 {[%clk 0:02:57]} 5. e4 {[%clk 0:03:00]}  Nxc3 {[%clk 0:02:58]} 6. bxc3 {[%clk 0:03:00]}  c5 {[%clk 0:02:58]} 7. Bc4 {[%clk 0:03:00]}  Bg7 {[%clk 0:02:58]} 8. Ne2 {[%clk 0:03:00]}  O-O {[%clk 0:02:58]} 9. O-O {[%clk 0:03:01]}  Nc6 {[%clk 0:02:56]} 10. Be3 {[%clk 0:03:01]}  Bg4 {[%clk 0:02:56]} 11. f3 {[%clk 0:03:00]}  Na5 {[%clk 0:02:55]} 12. Bd3 {[%clk 0:02:31]}  cxd4 {[%clk 0:02:55]} 13. cxd4 {[%clk 0:02:29]}  Be6 {[%clk 0:02:55]} 14. d5 {[%clk 0:01:59]}  Bxa1 {[%clk 0:02:47]} 15. Qxa1 {[%clk 0:02:00]}  f6 {[%clk 0:02:45]} 16. Bh6 {[%clk 0:01:57]}  Re8 {[%clk 0:02:34]} 17. Rd1 {[%clk 0:01:48]}  Bd7 {[%clk 0:02:31]} 18. Kh1 {[%clk 0:01:42]}  Ba4 {[%clk 0:02:14]} 19. Rb1 {[%clk 0:01:28]}  Rc8 {[%clk 0:02:10]} 20. Nf4 {[%clk 0:01:14]}  Bc2 {[%clk 0:02:02]} 21. Bxc2 {[%clk 0:01:14]}  Rxc2 {[%clk 0:02:03]} 22. e5 {[%clk 0:01:08]}  g5 {[%clk 0:01:07]} 23. exf6 {[%clk 0:00:53]}  exf6 {[%clk 0:01:08]} 24. Nh5 {[%clk 0:00:49]}  Rce2 {[%clk 0:01:03]} 25. Bxg5 {[%clk 0:00:39]}  Qe7 {[%clk 0:00:59]} 26. Nxf6+ {[%clk 0:00:36]}  Kf7 {[%clk 0:00:48]} 27. h4 {[%clk 0:00:33]}  Re1+ {[%clk 0:00:47]} 28. Kh2 {[%clk 0:00:30]}  Qe5+ {[%clk 0:00:44]} 29. Qxe5 {[%clk 0:00:28]}  R8xe5 {[%clk 0:00:44]} 30. Rb2 {[%clk 0:00:23]}  h6 {[%clk 0:00:44]} 31. Bd2 {[%clk 0:00:20]}  Kxf6 {[%clk 0:00:44]} 32. Bxa5 {[%clk 0:00:20]}  R1e2 {[%clk 0:00:43]} 33. Bc3 {[%clk 0:00:17]}  Rxb2 {[%clk 0:00:40]} 34. Bxb2 {[%clk 0:00:17]}  Kf5 {[%clk 0:00:37]} 35. g4+ {[%clk 0:00:17]}  Kf6 {[%clk 0:00:34]} 36. f4 {[%clk 0:00:16]}  b5 {[%clk 0:00:34]} 37. Bxe5+ {[%clk 0:00:15]}  Ke7 {[%clk 0:00:34]} 38. g5 {[%clk 0:00:16]}  a5 {[%clk 0:00:35]} 39. gxh6 {[%clk 0:00:16]} 1-0


[Site "https://www.chess.com"]

[Event "Titled Tuesday Blitz June 6 Early 2023"]
[White "Gubajdullin, Alexei"]
[Black "Hinds, Nathan"]
[WhiteFideId "4141202"]
[BlackFideId "7400730"]
[WhiteElo "2279"]
[BlackElo "2001"]
[Result "1-0"]
[Round "2"]
[TimeControl "180+2"]
[Date "2023.06.06"]
[WhiteClock "0:00:50"]
[BlackClock "0:01:04"]
[Board "136"]

1. d4 {[%clk 0:03:00]}  Nf6 {[%clk 0:02:59]} 2. Nf3 {[%clk 0:03:00]}  e6 {[%clk 0:02:59]} 3. Bf4 {[%clk 0:03:01]}  b6 {[%clk 0:02:57]} 4. e3 {[%clk 0:03:01]}  Be7 {[%clk 0:02:55]} 5. h3 {[%clk 0:03:01]}  O-O {[%clk 0:02:55]} 6. Be2 {[%clk 0:03:01]}  d5 {[%clk 0:02:50]} 7. O-O {[%clk 0:03:00]}  Ba6 {[%clk 0:02:50]} 8. Bxa6 {[%clk 0:02:58]}  Nxa6 {[%clk 0:02:51]} 9. a4 {[%clk 0:02:58]}  c5 {[%clk 0:02:51]} 10. a5 {[%clk 0:02:56]}  b5 {[%clk 0:02:50]} 11. dxc5 {[%clk 0:02:49]}  Nxc5 {[%clk 0:02:50]} 12. Nc3 {[%clk 0:02:45]}  a6 {[%clk 0:02:49]} 13. Ne5 {[%clk 0:02:41]}  Rc8 {[%clk 0:02:49]} 14. Ne2 {[%clk 0:02:37]}  Nfe4 {[%clk 0:02:43]} 15. Nd4 {[%clk 0:02:35]}  Bf6 {[%clk 0:02:41]} 16. f3 {[%clk 0:02:29]}  Nd6 {[%clk 0:02:41]} 17. b3 {[%clk 0:02:24]}  Bxe5 {[%clk 0:02:21]} 18. Bxe5 {[%clk 0:02:23]}  Qe7 {[%clk 0:02:21]} 19. Qd2 {[%clk 0:02:11]}  f6 {[%clk 0:02:22]} 20. Bg3 {[%clk 0:02:07]}  Rfd8 {[%clk 0:02:22]} 21. Qb4 {[%clk 0:02:06]}  e5 {[%clk 0:02:13]} 22. Ne2 {[%clk 0:02:05]}  Nf5 {[%clk 0:02:10]} 23. Bf2 {[%clk 0:02:04]}  Ne6 {[%clk 0:02:00]} 24. Qg4 {[%clk 0:01:52]}  Nh6 {[%clk 0:01:57]} 25. Qh5 {[%clk 0:01:34]}  Rxc2 {[%clk 0:01:55]} 26. Ng3 {[%clk 0:01:25]}  Qf7 {[%clk 0:01:44]} 27. Qh4 {[%clk 0:01:23]}  Rdc8 {[%clk 0:01:40]} 28. Rad1 {[%clk 0:01:21]}  Nf8 {[%clk 0:01:39]} 29. f4 {[%clk 0:01:15]}  Ng6 {[%clk 0:01:37]} 30. Qh5 {[%clk 0:01:14]}  exf4 {[%clk 0:01:32]} 31. exf4 {[%clk 0:01:13]}  Nxf4 {[%clk 0:01:31]} 32. Qf3 {[%clk 0:01:10]}  Ng6 {[%clk 0:01:25]} 33. Qxd5 {[%clk 0:01:00]}  Qxd5 {[%clk 0:01:20]} 34. Rxd5 {[%clk 0:01:00]}  Ne5 {[%clk 0:01:19]} 35. Rd6 {[%clk 0:00:58]}  R2c6 {[%clk 0:01:18]} 36. Rfd1 {[%clk 0:00:57]}  Nhf7 {[%clk 0:01:18]} 37. Rxc6 {[%clk 0:00:55]}  Rxc6 {[%clk 0:01:18]} 38. Nf5 {[%clk 0:00:55]}  Rc7 {[%clk 0:01:10]} 39. Bb6 {[%clk 0:00:52]}  Rb7 {[%clk 0:01:10]} 40. Rc1 {[%clk 0:00:51]}  g6 {[%clk 0:01:09]} 41. Rc8+ {[%clk 0:00:49]}  Nd8 {[%clk 0:01:06]} 42. Rxd8+ {[%clk 0:00:49]}  Kf7 {[%clk 0:01:04]} 43. Nd6+ {[%clk 0:00:49]}  Ke7 {[%clk 0:01:04]} 44. Nxb7 {[%clk 0:00:50]} 1-0


[Site "https://www.chess.com"]

[Event "Titled Tuesday Blitz June 6 Early 2023"]
[White "Perez, Maximiliano"]
[Black "Shtompel, Yuriy"]
[WhiteFideId "117234"]
[BlackFideId "14168278"]
[WhiteElo "2334"]
[BlackElo "1844"]
[Result "1-0"]
[Round "2"]
[TimeControl "180+2"]
[Date "2023.06.06"]
[WhiteClock "0:00:19"]
[BlackClock "0:00:13"]
[Board "139"]

1. e4 {[%clk 0:02:03]}  c5 {[%clk 0:02:58]} 2. Nf3 {[%clk 0:02:02]}  d6 {[%clk 0:02:57]} 3. d4 {[%clk 0:02:02]}  cxd4 {[%clk 0:02:58]} 4. Nxd4 {[%clk 0:02:03]}  Nf6 {[%clk 0:02:59]} 5. Nc3 {[%clk 0:02:04]}  a6 {[%clk 0:02:57]} 6. Be2 {[%clk 0:02:04]}  e6 {[%clk 0:02:56]} 7. O-O {[%clk 0:02:02]}  Be7 {[%clk 0:02:55]} 8. a4 {[%clk 0:02:02]}  Nbd7 {[%clk 0:02:54]} 9. a5 {[%clk 0:02:00]}  O-O {[%clk 0:02:53]} 10. Be3 {[%clk 0:01:59]}  Qc7 {[%clk 0:02:52]} 11. f3 {[%clk 0:01:58]}  Ne5 {[%clk 0:02:40]} 12. Na4 {[%clk 0:01:38]}  Nfd7 {[%clk 0:02:18]} 13. Nb3 {[%clk 0:01:25]}  Nc4 {[%clk 0:02:06]} 14. Bxc4 {[%clk 0:01:21]}  Qxc4 {[%clk 0:02:05]} 15. Nd4 {[%clk 0:01:11]}  Bf6 {[%clk 0:01:48]} 16. c3 {[%clk 0:01:10]}  d5 {[%clk 0:01:37]} 17. b3 {[%clk 0:01:04]}  Qc7 {[%clk 0:01:31]} 18. exd5 {[%clk 0:01:05]}  exd5 {[%clk 0:01:31]} 19. Ne2 {[%clk 0:00:57]}  Re8 {[%clk 0:01:23]} 20. Bf2 {[%clk 0:00:54]}  Qe5 {[%clk 0:01:01]} 21. Re1 {[%clk 0:00:52]}  Qg5 {[%clk 0:00:27]} 22. f4 {[%clk 0:00:24]}  Qg6 {[%clk 0:00:20]} 23. Ng3 {[%clk 0:00:19]}  Rxe1+ {[%clk 0:00:18]} 24. Qxe1 {[%clk 0:00:20]}  Nf8 {[%clk 0:00:18]} 25. Qe8 {[%clk 0:00:20]}  Rb8 {[%clk 0:00:13]} 26. Bc5 {[%clk 0:00:19]} 1-0


[Site "https://www.chess.com"]

[Event "Titled Tuesday Blitz June 6 Early 2023"]
[White "Jodorcovsky Werjivker, Paulo"]
[Black "Aloma Vidal, Robert"]
[WhiteFideId "3700305"]
[BlackFideId "2260409"]
[WhiteElo "2120"]
[BlackElo "2435"]
[Result "0-1"]
[Round "2"]
[TimeControl "180+2"]
[Date "2023.06.06"]
[WhiteClock "0:00:36"]
[BlackClock "0:01:22"]
[Board "141"]

1. e4 {[%clk 0:03:00]}  e5 {[%clk 0:03:00]} 2. Nf3 {[%clk 0:02:59]}  Nf6 {[%clk 0:03:00]} 3. Nxe5 {[%clk 0:02:55]}  d6 {[%clk 0:03:01]} 4. Nf3 {[%clk 0:02:54]}  Nxe4 {[%clk 0:03:02]} 5. Nc3 {[%clk 0:02:50]}  Nf6 {[%clk 0:03:01]} 6. Be2 {[%clk 0:02:35]}  g6 {[%clk 0:03:01]} 7. O-O {[%clk 0:02:33]}  Bg7 {[%clk 0:03:02]} 8. d4 {[%clk 0:02:32]}  O-O {[%clk 0:03:03]} 9. Bg5 {[%clk 0:02:32]}  h6 {[%clk 0:03:01]} 10. Be3 {[%clk 0:02:31]}  Nc6 {[%clk 0:02:45]} 11. Qd2 {[%clk 0:02:30]}  Kh7 {[%clk 0:02:45]} 12. Rfe1 {[%clk 0:02:17]}  Ne7 {[%clk 0:02:45]} 13. Bd3 {[%clk 0:02:14]}  Bg4 {[%clk 0:02:37]} 14. Ne2 {[%clk 0:02:02]}  Ned5 {[%clk 0:02:29]} 15. c3 {[%clk 0:01:58]}  Qd7 {[%clk 0:02:26]} 16. Ng3 {[%clk 0:01:57]}  Bxf3 {[%clk 0:02:22]} 17. gxf3 {[%clk 0:01:58]}  Rae8 {[%clk 0:02:21]} 18. Ne4 {[%clk 0:01:43]}  Qh3 {[%clk 0:02:19]} 19. Ng3 {[%clk 0:01:42]}  h5 {[%clk 0:02:12]} 20. Bf1 {[%clk 0:01:39]}  Qd7 {[%clk 0:02:10]} 21. Bg2 {[%clk 0:01:16]}  Kg8 {[%clk 0:01:59]} 22. Ne4 {[%clk 0:01:11]}  Nh7 {[%clk 0:01:59]} 23. Bh6 {[%clk 0:00:58]}  f5 {[%clk 0:01:57]} 24. Bxg7 {[%clk 0:00:55]}  Kxg7 {[%clk 0:01:50]} 25. Ng5 {[%clk 0:00:53]}  Nxg5 {[%clk 0:01:37]} 26. Qxg5 {[%clk 0:00:54]}  Qd8 {[%clk 0:01:34]} 27. Qxd8 {[%clk 0:00:47]}  Rxd8 {[%clk 0:01:35]} 28. f4 {[%clk 0:00:39]}  Nxf4 {[%clk 0:01:35]} 29. Bxb7 {[%clk 0:00:39]}  Rb8 {[%clk 0:01:35]} 30. Bf3 {[%clk 0:00:35]}  Rxb2 {[%clk 0:01:34]} 31. Re7+ {[%clk 0:00:35]}  Rf7 {[%clk 0:01:34]} 32. Rae1 {[%clk 0:00:36]}  Rxa2 {[%clk 0:01:22]} 0-1


[Site "https://www.chess.com"]

[Event "Titled Tuesday Blitz June 6 Early 2023"]
[White "TimGrutter03"]
[Black "Llanos, Guillermo"]
[BlackFideId "100358"]
[WhiteElo "2583"]
[BlackElo "2210"]
[Result "0-1"]
[Round "2"]
[TimeControl "180+2"]
[Date "2023.06.06"]
[WhiteClock "0:00:10"]
[BlackClock "0:01:30"]
[Board "142"]

1. e4 {[%clk 0:03:00]}  Nf6 {[%clk 0:02:57]} 2. e5 {[%clk 0:03:01]}  Nd5 {[%clk 0:02:56]} 3. c4 {[%clk 0:03:00]}  Nb6 {[%clk 0:02:56]} 4. a4 {[%clk 0:03:00]}  a5 {[%clk 0:02:54]} 5. Ra3 {[%clk 0:03:00]}  d6 {[%clk 0:02:54]} 6. exd6 {[%clk 0:02:59]}  cxd6 {[%clk 0:02:54]} 7. d4 {[%clk 0:02:59]}  g6 {[%clk 0:02:53]} 8. h4 {[%clk 0:02:52]}  h6 {[%clk 0:02:51]} 9. h5 {[%clk 0:02:51]}  g5 {[%clk 0:02:51]} 10. Bd3 {[%clk 0:02:52]}  Nc6 {[%clk 0:02:49]} 11. Ne2 {[%clk 0:02:49]}  Bg7 {[%clk 0:02:49]} 12. Be3 {[%clk 0:02:38]}  Nb4 {[%clk 0:02:48]} 13. Nbc3 {[%clk 0:02:26]}  Bg4 {[%clk 0:02:41]} 14. f3 {[%clk 0:02:24]}  Bd7 {[%clk 0:02:36]} 15. b3 {[%clk 0:02:14]}  e5 {[%clk 0:02:27]} 16. Be4 {[%clk 0:01:56]}  f5 {[%clk 0:02:17]} 17. Bxb7 {[%clk 0:01:50]}  Rb8 {[%clk 0:02:14]} 18. Bd5 {[%clk 0:01:50]}  N6xd5 {[%clk 0:02:12]} 19. cxd5 {[%clk 0:01:45]}  O-O {[%clk 0:02:00]} 20. dxe5 {[%clk 0:01:39]}  Bxe5 {[%clk 0:01:59]} 21. Bd4 {[%clk 0:01:33]}  Qf6 {[%clk 0:01:56]} 22. O-O {[%clk 0:01:28]}  Rbc8 {[%clk 0:01:48]} 23. Nb5 {[%clk 0:01:23]}  Nc2 {[%clk 0:01:42]} 24. Ra2 {[%clk 0:01:11]}  Bxb5 {[%clk 0:01:40]} 25. Rxc2 {[%clk 0:01:06]}  Bxe2 {[%clk 0:01:37]} 26. Qxe2 {[%clk 0:00:17]}  Bxd4+ {[%clk 0:01:37]} 27. Kh1 {[%clk 0:00:17]}  Rxc2 {[%clk 0:01:37]} 28. Qxc2 {[%clk 0:00:18]}  Qe5 {[%clk 0:01:35]} 29. Qd2 {[%clk 0:00:12]}  Be3 {[%clk 0:01:34]} 30. Qxa5 {[%clk 0:00:11]}  Qg3 {[%clk 0:01:31]} 31. Qb4 {[%clk 0:00:10]}  Bf4 {[%clk 0:01:30]} 0-1


[Site "https://www.chess.com"]

[Event "Titled Tuesday Blitz June 6 Early 2023"]
[White "Pavlidou, Ekaterini"]
[Black "Baches Garcia, Guillermo"]
[WhiteFideId "4213262"]
[BlackFideId "2209764"]
[WhiteElo "2126"]
[BlackElo "2512"]
[Result "1/2-1/2"]
[Round "2"]
[TimeControl "180+2"]
[Date "2023.06.06"]
[WhiteClock "0:01:17"]
[BlackClock "0:01:28"]
[Board "150"]

1. d4 {[%clk 0:02:57]}  d5 {[%clk 0:02:58]} 2. c4 {[%clk 0:02:57]}  e6 {[%clk 0:02:59]} 3. Nc3 {[%clk 0:02:57]}  h6 {[%clk 0:02:59]} 4. Bf4 {[%clk 0:02:53]}  Nf6 {[%clk 0:02:57]} 5. e3 {[%clk 0:02:52]}  Bd6 {[%clk 0:02:57]} 6. Bxd6 {[%clk 0:02:50]}  Qxd6 {[%clk 0:02:57]} 7. c5 {[%clk 0:02:43]}  Qe7 {[%clk 0:02:55]} 8. Nf3 {[%clk 0:02:43]}  O-O {[%clk 0:02:53]} 9. Be2 {[%clk 0:02:41]}  b6 {[%clk 0:02:47]} 10. b4 {[%clk 0:02:40]}  a5 {[%clk 0:02:47]} 11. a3 {[%clk 0:02:40]}  Nfd7 {[%clk 0:02:19]} 12. O-O {[%clk 0:02:02]}  c6 {[%clk 0:02:20]} 13. Qc2 {[%clk 0:01:54]}  Ba6 {[%clk 0:02:11]} 14. e4 {[%clk 0:01:19]}  Bxe2 {[%clk 0:02:05]} 15. Qxe2 {[%clk 0:01:19]}  dxe4 {[%clk 0:01:43]} 16. Nxe4 {[%clk 0:01:18]}  Nf6 {[%clk 0:01:38]} 17. Nd6 {[%clk 0:01:17]}  bxc5 {[%clk 0:01:28]} 1/2-1/2


[Site "https://www.chess.com"]

[Event "Titled Tuesday Blitz June 6 Early 2023"]
[White "Buscar, Michael"]
[Black "Tanmay Jain"]
[WhiteFideId "2603616"]
[BlackFideId "45015481"]
[WhiteElo "2010"]
[BlackElo "2032"]
[Result "0-1"]
[Round "2"]
[TimeControl "180+2"]
[Date "2023.06.06"]
[WhiteClock "0:00:03"]
[BlackClock "0:00:08"]
[Board "151"]

1. d4 {[%clk 0:02:53]}  Nf6 {[%clk 0:02:59]} 2. c4 {[%clk 0:02:49]}  e6 {[%clk 0:02:59]} 3. Nc3 {[%clk 0:02:47]}  d5 {[%clk 0:02:59]} 4. cxd5 {[%clk 0:02:40]}  exd5 {[%clk 0:03:00]} 5. Bg5 {[%clk 0:02:38]}  Be7 {[%clk 0:02:59]} 6. e3 {[%clk 0:02:35]}  O-O {[%clk 0:02:59]} 7. Bd3 {[%clk 0:02:35]}  h6 {[%clk 0:02:58]} 8. Bh4 {[%clk 0:02:34]}  c6 {[%clk 0:02:57]} 9. Nf3 {[%clk 0:02:32]}  Ne4 {[%clk 0:02:56]} 10. Bxe7 {[%clk 0:02:29]}  Qxe7 {[%clk 0:02:57]} 11. Bxe4 {[%clk 0:02:29]}  dxe4 {[%clk 0:02:57]} 12. Ne5 {[%clk 0:02:27]}  Nd7 {[%clk 0:02:47]} 13. Nxd7 {[%clk 0:02:25]}  Bxd7 {[%clk 0:02:48]} 14. Qc2 {[%clk 0:02:20]}  f5 {[%clk 0:02:47]} 15. O-O-O {[%clk 0:02:16]}  Be6 {[%clk 0:02:45]} 16. Kb1 {[%clk 0:02:15]}  Rad8 {[%clk 0:02:40]} 17. h3 {[%clk 0:02:13]}  Bd5 {[%clk 0:02:32]} 18. Rhg1 {[%clk 0:01:30]}  Bc4 {[%clk 0:02:22]} 19. Ka1 {[%clk 0:01:27]}  Bd5 {[%clk 0:02:06]} 20. g4 {[%clk 0:01:21]}  f4 {[%clk 0:02:06]} 21. Nxd5 {[%clk 0:00:56]}  Rxd5 {[%clk 0:01:59]} 22. exf4 {[%clk 0:00:48]}  Rxf4 {[%clk 0:02:00]} 23. Rge1 {[%clk 0:00:49]}  Qe6 {[%clk 0:01:43]} 24. Re2 {[%clk 0:00:47]}  Rd8 {[%clk 0:01:39]} 25. Qa4 {[%clk 0:00:40]}  a6 {[%clk 0:01:29]} 26. Rde1 {[%clk 0:00:40]}  Qd5 {[%clk 0:01:26]} 27. a3 {[%clk 0:00:18]}  Rd7 {[%clk 0:01:13]} 28. Rd2 {[%clk 0:00:16]}  Rdf7 {[%clk 0:01:12]} 29. Qc2 {[%clk 0:00:14]}  Rd7 {[%clk 0:01:03]} 30. Red1 {[%clk 0:00:10]}  Rf3 {[%clk 0:00:56]} 31. Re2 {[%clk 0:00:10]}  Re7 {[%clk 0:00:50]} 32. Rde1 {[%clk 0:00:10]}  Rf4 {[%clk 0:00:50]} 33. Rd2 {[%clk 0:00:10]}  Qd6 {[%clk 0:00:33]} 34. Rde2 {[%clk 0:00:10]}  Qd5 {[%clk 0:00:32]} 35. Qc3 {[%clk 0:00:10]}  Ref7 {[%clk 0:00:31]} 36. Qd2 {[%clk 0:00:09]}  g5 {[%clk 0:00:29]} 37. Qb4 {[%clk 0:00:06]}  Rd7 {[%clk 0:00:26]} 38. Qb6 {[%clk 0:00:06]}  Qxd4 {[%clk 0:00:24]} 39. Qb3+ {[%clk 0:00:06]}  Qd5 {[%clk 0:00:22]} 40. Qc3 {[%clk 0:00:06]}  Qd4 {[%clk 0:00:21]} 41. Qb3+ {[%clk 0:00:07]}  Kg7 {[%clk 0:00:21]} 42. Qc2 {[%clk 0:00:05]}  Qd3 {[%clk 0:00:16]} 43. Qa4 {[%clk 0:00:04]}  Re7 {[%clk 0:00:12]} 44. Qa5 {[%clk 0:00:04]}  Qd5 {[%clk 0:00:11]} 45. Qb4 {[%clk 0:00:05]}  Ref7 {[%clk 0:00:11]} 46. Qc3+ {[%clk 0:00:05]}  Kg8 {[%clk 0:00:10]} 47. Qc2 {[%clk 0:00:05]}  Re7 {[%clk 0:00:10]} 48. Rd2 {[%clk 0:00:06]}  Qf7 {[%clk 0:00:09]} 49. Rd8+ {[%clk 0:00:06]}  Kg7 {[%clk 0:00:10]} 50. Qc3+ {[%clk 0:00:06]}  Qf6 {[%clk 0:00:10]} 51. Qc4 {[%clk 0:00:04]}  Qf7 {[%clk 0:00:08]} 52. Qd4+ {[%clk 0:00:04]}  Qf6 {[%clk 0:00:08]} 53. Qc4 {[%clk 0:00:04]}  Rf7 {[%clk 0:00:08]} 54. Qb3 {[%clk 0:00:03]}  Rxf2 {[%clk 0:00:07]} 55. Rxe4 {[%clk 0:00:04]}  Rf3 {[%clk 0:00:07]} 56. Qc4 {[%clk 0:00:03]}  Rf1+ {[%clk 0:00:06]} 57. Ka2 {[%clk 0:00:03]}  Rf4 {[%clk 0:00:07]} 58. Rdd4 {[%clk 0:00:03]}  Rxe4 {[%clk 0:00:07]} 59. Rxe4 {[%clk 0:00:03]}  b5 {[%clk 0:00:07]} 60. Qc5 {[%clk 0:00:03]}  Qf3 {[%clk 0:00:06]} 61. Re3 {[%clk 0:00:04]}  Qf6 {[%clk 0:00:06]} 62. Rb3 {[%clk 0:00:03]}  Rd7 {[%clk 0:00:06]} 63. Qb4 {[%clk 0:00:03]}  Rd5 {[%clk 0:00:06]} 64. a4 {[%clk 0:00:03]}  Qf7 {[%clk 0:00:07]} 65. Ka3 {[%clk 0:00:03]}  c5 {[%clk 0:00:07]} 66. Qa5 {[%clk 0:00:03]}  b4+ {[%clk 0:00:08]} 67. Ka2 {[%clk 0:00:03]}  Rd3 {[%clk 0:00:07]} 68. Qxc5 {[%clk 0:00:03]}  Qxb3+ {[%clk 0:00:08]} 0-1


[Site "https://www.chess.com"]

[Event "Titled Tuesday Blitz June 6 Early 2023"]
[White "Chernomordik, Pavel"]
[Black "Putri, Regita Desyari"]
[WhiteFideId "2804530"]
[BlackFideId "7109083"]
[WhiteElo "2193"]
[BlackElo "1930"]
[Result "1-0"]
[Round "2"]
[TimeControl "180+2"]
[Date "2023.06.06"]
[WhiteClock "0:01:34"]
[BlackClock "0:01:34"]
[Board "154"]

1. e4 {[%clk 0:03:00]}  e5 {[%clk 0:02:59]} 2. Nf3 {[%clk 0:02:57]}  Nc6 {[%clk 0:02:59]} 3. Bb5 {[%clk 0:02:56]}  a6 {[%clk 0:02:58]} 4. Ba4 {[%clk 0:02:56]}  Nf6 {[%clk 0:02:59]} 5. Qe2 {[%clk 0:02:55]}  b5 {[%clk 0:02:57]} 6. Bb3 {[%clk 0:02:55]}  Be7 {[%clk 0:02:55]} 7. a4 {[%clk 0:02:54]}  b4 {[%clk 0:02:48]} 8. d4 {[%clk 0:02:50]}  d6 {[%clk 0:02:46]} 9. Qc4 {[%clk 0:02:41]}  O-O {[%clk 0:02:34]} 10. Qxc6 {[%clk 0:02:35]}  exd4 {[%clk 0:02:31]} 11. Qxa8 {[%clk 0:02:31]}  Qd7 {[%clk 0:02:19]} 12. Qa7 {[%clk 0:02:21]}  Qg4 {[%clk 0:02:11]} 13. O-O {[%clk 0:02:13]}  Qg6 {[%clk 0:02:02]} 14. Qxd4 {[%clk 0:02:11]}  c5 {[%clk 0:02:00]} 15. Qe3 {[%clk 0:02:07]}  Nxe4 {[%clk 0:01:56]} 16. Nbd2 {[%clk 0:01:59]}  Nxd2 {[%clk 0:01:49]} 17. Bxd2 {[%clk 0:01:49]}  Bf6 {[%clk 0:01:46]} 18. c3 {[%clk 0:01:41]}  Bh3 {[%clk 0:01:42]} 19. Nh4 {[%clk 0:01:38]}  Bxh4 {[%clk 0:01:33]} 20. Qxh3 {[%clk 0:01:37]}  Bf6 {[%clk 0:01:34]} 21. cxb4 {[%clk 0:01:34]} 1-0


[Site "https://www.chess.com"]